[Event "Titled Tuesday Blitz November 15 Early 2022"]
[White "Al-Tarboush, Ward"]
[Black "Smietanska, Wiktoria"]
[WhiteFideId "7601450"]
[BlackFideId "21869359"]
[WhiteElo "2273"]
[BlackElo "1695"]
[Result "1-0"]
[Round "02"]
[TimeControl "180+1"]
[Date "2022.11.16"]
[WhiteClock "0:00:31"]
[BlackClock "0:00:05"]

1. e4 {[%clk 0:03:00]}  c5 {[%clk 0:02:59]} 2. Nf3 {[%clk 0:03:01]}  d6 {[%clk 0:02:59]} 3. d4 {[%clk 0:03:01]}  cxd4 {[%clk 0:02:59]} 4. Nxd4 {[%clk 0:03:02]}  Nf6 {[%clk 0:03:00]} 5. Nc3 {[%clk 0:03:03]}  a6 {[%clk 0:03:00]} 6. h3 {[%clk 0:03:03]}  e5 {[%clk 0:03:00]} 7. Nde2 {[%clk 0:03:04]}  h5 {[%clk 0:02:59]} 8. Bg5 {[%clk 0:03:04]}  Be7 {[%clk 0:02:56]} 9. g3 {[%clk 0:03:05]}  Be6 {[%clk 0:02:52]} 10. Bg2 {[%clk 0:03:05]}  Nbd7 {[%clk 0:02:52]} 11. a4 {[%clk 0:03:04]}  O-O {[%clk 0:02:47]} 12. O-O {[%clk 0:02:39]}  Re8 {[%clk 0:02:40]} 13. a5 {[%clk 0:02:19]}  Nc5 {[%clk 0:02:17]} 14. f4 {[%clk 0:01:21]}  Qc7 {[%clk 0:01:34]} 15. b3 {[%clk 0:01:10]}  Qc6 {[%clk 0:01:22]} 16. f5 {[%clk 0:01:03]}  Bc8 {[%clk 0:01:10]} 17. Bxf6 {[%clk 0:00:58]}  Bxf6 {[%clk 0:01:09]} 18. Nd5 {[%clk 0:00:56]}  Nd7 {[%clk 0:00:58]} 19. Nec3 {[%clk 0:00:53]}  Bg5 {[%clk 0:00:48]} 20. Qxh5 {[%clk 0:00:49]}  Be3+ {[%clk 0:00:29]} 21. Kh2 {[%clk 0:00:43]}  Bd4 {[%clk 0:00:25]} 22. Rf3 {[%clk 0:00:43]}  Nf8 {[%clk 0:00:13]} 23. Raf1 {[%clk 0:00:40]}  Bd7 {[%clk 0:00:09]} 24. f6 {[%clk 0:00:39]}  g6 {[%clk 0:00:09]} 25. Qh6 {[%clk 0:00:37]}  Ne6 {[%clk 0:00:07]} 26. Ne7+ {[%clk 0:00:30]}  Rxe7 {[%clk 0:00:08]} 27. fxe7 {[%clk 0:00:31]}  Bxc3 {[%clk 0:00:07]} 28. Rxf7 {[%clk 0:00:31]}  Be8 {[%clk 0:00:05]} 29. Qh7# {[%clk 0:00:31]} 1-0


[Site "https://www.chess.com"]

[Event "Titled Tuesday Blitz November 15 Early 2022"]
[White "Aldokhin, Ivan"]
[Black "Goltsev, Dmitry"]
[WhiteFideId "24115720"]
[BlackFideId "24176710"]
[WhiteElo "2313"]
[BlackElo "2289"]
[Result "1-0"]
[Round "02"]
[TimeControl "180+1"]
[Date "2022.11.16"]
[WhiteClock "0:00:03"]
[BlackClock "0:00:47"]

1. e4 {[%clk 0:02:58]}  e6 {[%clk 0:02:59]} 2. d4 {[%clk 0:02:57]}  d5 {[%clk 0:03:00]} 3. Nc3 {[%clk 0:02:57]}  c5 {[%clk 0:03:00]} 4. exd5 {[%clk 0:02:55]}  exd5 {[%clk 0:03:01]} 5. Nf3 {[%clk 0:02:55]}  Nf6 {[%clk 0:02:59]} 6. Bb5+ {[%clk 0:02:55]}  Nc6 {[%clk 0:02:56]} 7. Bg5 {[%clk 0:02:46]}  Be7 {[%clk 0:02:46]} 8. O-O {[%clk 0:02:23]}  O-O {[%clk 0:02:44]} 9. h3 {[%clk 0:02:19]}  h6 {[%clk 0:02:36]} 10. Bf4 {[%clk 0:02:08]}  a6 {[%clk 0:02:33]} 11. Bxc6 {[%clk 0:02:02]}  bxc6 {[%clk 0:02:34]} 12. Re1 {[%clk 0:02:01]}  Be6 {[%clk 0:02:29]} 13. Qd2 {[%clk 0:01:57]}  Re8 {[%clk 0:02:15]} 14. Ne5 {[%clk 0:01:48]}  Qb6 {[%clk 0:02:14]} 15. Na4 {[%clk 0:01:36]}  Qb4 {[%clk 0:02:10]} 16. Qxb4 {[%clk 0:01:31]}  cxb4 {[%clk 0:02:11]} 17. Nxc6 {[%clk 0:01:29]}  Rac8 {[%clk 0:02:11]} 18. Nxe7+ {[%clk 0:01:24]}  Rxe7 {[%clk 0:02:12]} 19. Nc5 {[%clk 0:01:08]}  Nd7 {[%clk 0:02:04]} 20. Nxa6 {[%clk 0:01:01]}  Rxc2 {[%clk 0:01:26]} 21. Nxb4 {[%clk 0:01:00]}  Rxb2 {[%clk 0:01:24]} 22. Nxd5 {[%clk 0:01:00]}  Re8 {[%clk 0:01:19]} 23. Nc7 {[%clk 0:00:59]}  Ra8 {[%clk 0:01:13]} 24. Nxa8 {[%clk 0:00:57]}  Bxa2 {[%clk 0:01:08]} 25. Nc7 {[%clk 0:00:45]}  Nb6 {[%clk 0:01:04]} 26. Rac1 {[%clk 0:00:30]}  g5 {[%clk 0:01:00]} 27. Be5 {[%clk 0:00:29]}  Nc4 {[%clk 0:01:01]} 28. Bf6 {[%clk 0:00:21]}  Nd6 {[%clk 0:00:57]} 29. Re7 {[%clk 0:00:14]}  Kh7 {[%clk 0:00:53]} 30. Rd7 {[%clk 0:00:12]}  Ne4 {[%clk 0:00:53]} 31. Be5 {[%clk 0:00:11]}  Nxf2 {[%clk 0:00:51]} 32. d5 {[%clk 0:00:09]}  Re2 {[%clk 0:00:47]} 33. Rxf7+ {[%clk 0:00:08]}  Kg6 {[%clk 0:00:47]} 34. Rf6+ {[%clk 0:00:06]}  Kh5 {[%clk 0:00:47]} 35. g4+ {[%clk 0:00:04]}  Kh4 {[%clk 0:00:47]} 36. Rxh6# {[%clk 0:00:03]} 1-0


[Site "https://www.chess.com"]

[Event "Titled Tuesday Blitz November 15 Early 2022"]
[White "Alekseenko, Kirill"]
[Black "Volkov, Maksim"]
[WhiteFideId "4135539"]
[BlackFideId "54123070"]
[WhiteElo "2682"]
[BlackElo "2257"]
[Result "1-0"]
[Round "02"]
[TimeControl "180+1"]
[Date "2022.11.15"]
[WhiteClock "0:00:17"]
[BlackClock "0:00:06"]

1. e4 {[%clk 0:03:00]}  c5 {[%clk 0:02:59]} 2. Nf3 {[%clk 0:03:00]}  d6 {[%clk 0:02:59]} 3. d4 {[%clk 0:03:00]}  cxd4 {[%clk 0:03:00]} 4. Nxd4 {[%clk 0:03:01]}  Nf6 {[%clk 0:03:00]} 5. Nc3 {[%clk 0:03:00]}  a6 {[%clk 0:03:01]} 6. Be2 {[%clk 0:03:00]}  e5 {[%clk 0:03:00]} 7. Nb3 {[%clk 0:03:00]}  Be7 {[%clk 0:03:01]} 8. O-O {[%clk 0:03:01]}  O-O {[%clk 0:03:01]} 9. Kh1 {[%clk 0:03:02]}  Re8 {[%clk 0:02:57]} 10. Be3 {[%clk 0:03:00]}  Be6 {[%clk 0:02:56]} 11. f4 {[%clk 0:03:00]}  Qc7 {[%clk 0:02:33]} 12. Qe1 {[%clk 0:02:57]}  Nbd7 {[%clk 0:02:29]} 13. Rd1 {[%clk 0:02:56]}  b5 {[%clk 0:02:27]} 14. a3 {[%clk 0:02:57]}  Nb6 {[%clk 0:02:21]} 15. Qg3 {[%clk 0:02:42]}  Nc4 {[%clk 0:02:11]} 16. Bc1 {[%clk 0:02:42]}  exf4 {[%clk 0:02:01]} 17. Rxf4 {[%clk 0:02:41]}  Rad8 {[%clk 0:01:56]} 18. Nd4 {[%clk 0:02:30]}  d5 {[%clk 0:01:43]} 19. Nxe6 {[%clk 0:02:21]}  fxe6 {[%clk 0:01:44]} 20. exd5 {[%clk 0:02:21]}  Bd6 {[%clk 0:01:40]} 21. Rdf1 {[%clk 0:02:12]}  exd5 {[%clk 0:01:28]} 22. Qh4 {[%clk 0:02:09]}  Bxf4 {[%clk 0:01:26]} 23. Bxf4 {[%clk 0:02:10]}  Qb6 {[%clk 0:01:17]} 24. Bd3 {[%clk 0:02:04]}  Ne3 {[%clk 0:01:10]} 25. Bxe3 {[%clk 0:02:01]}  Qxe3 {[%clk 0:01:01]} 26. h3 {[%clk 0:01:42]}  Re5 {[%clk 0:00:53]} 27. Rf3 {[%clk 0:01:35]}  Qg5 {[%clk 0:00:51]} 28. Qd4 {[%clk 0:01:25]}  Rde8 {[%clk 0:00:48]} 29. Kh2 {[%clk 0:01:23]}  Re1 {[%clk 0:00:45]} 30. Qf4 {[%clk 0:01:23]}  Qxf4+ {[%clk 0:00:41]} 31. Rxf4 {[%clk 0:01:24]}  R8e5 {[%clk 0:00:40]} 32. a4 {[%clk 0:01:24]}  Nh5 {[%clk 0:00:32]} 33. Rd4 {[%clk 0:01:17]}  bxa4 {[%clk 0:00:27]} 34. Nxd5 {[%clk 0:01:16]}  Rg5 {[%clk 0:00:20]} 35. h4 {[%clk 0:01:01]}  Rge5 {[%clk 0:00:17]} 36. Nc3 {[%clk 0:00:58]}  Nf6 {[%clk 0:00:14]} 37. g4 {[%clk 0:00:46]}  h5 {[%clk 0:00:14]} 38. g5 {[%clk 0:00:43]}  Ng4+ {[%clk 0:00:14]} 39. Kg2 {[%clk 0:00:44]}  a3 {[%clk 0:00:13]} 40. bxa3 {[%clk 0:00:44]}  Kf8 {[%clk 0:00:11]} 41. a4 {[%clk 0:00:37]}  Rc1 {[%clk 0:00:11]} 42. Kf3 {[%clk 0:00:30]}  Rh1 {[%clk 0:00:08]} 43. Ne4 {[%clk 0:00:27]}  Rxh4 {[%clk 0:00:07]} 44. Rd8+ {[%clk 0:00:25]}  Ke7 {[%clk 0:00:07]} 45. Ra8 {[%clk 0:00:26]}  Nh2+ {[%clk 0:00:07]} 46. Kg3 {[%clk 0:00:26]}  Rhxe4 {[%clk 0:00:07]} 47. Ra7+ {[%clk 0:00:25]}  Kd6 {[%clk 0:00:07]} 48. Rxa6+ {[%clk 0:00:25]}  Kc7 {[%clk 0:00:06]} 49. Bxe4 {[%clk 0:00:25]}  Rxe4 {[%clk 0:00:05]} 50. Kxh2 {[%clk 0:00:25]}  Re2+ {[%clk 0:00:05]} 51. Kg3 {[%clk 0:00:24]}  Rxc2 {[%clk 0:00:06]} 52. Ra7+ {[%clk 0:00:24]}  Kb6 {[%clk 0:00:06]} 53. Rxg7 {[%clk 0:00:25]}  Rc4 {[%clk 0:00:06]} 54. Kh3 {[%clk 0:00:18]}  Rg4 {[%clk 0:00:05]} 55. g6 {[%clk 0:00:17]}  Ka5 {[%clk 0:00:06]} 56. Rg8 {[%clk 0:00:17]}  Kxa4 {[%clk 0:00:06]} 57. g7 {[%clk 0:00:17]} 1-0


[Site "https://www.chess.com"]

[Event "Titled Tuesday Blitz November 15 Early 2022"]
[White "Alfaro, William"]
[Black "Ibadov, Dashgyn"]
[WhiteFideId "6100457"]
[BlackFideId "24107514"]
[WhiteElo "2096"]
[BlackElo "2208"]
[Result "0-1"]
[Round "02"]
[TimeControl "180+1"]
[Date "2022.11.16"]
[WhiteClock "0:02:10"]
[BlackClock "0:02:12"]

1. Nf3 {[%clk 0:02:59]}  d5 {[%clk 0:02:59]} 2. g3 {[%clk 0:02:59]}  Nf6 {[%clk 0:02:56]} 3. Bg2 {[%clk 0:02:59]}  e6 {[%clk 0:02:56]} 4. O-O {[%clk 0:02:59]}  Be7 {[%clk 0:02:57]} 5. d3 {[%clk 0:02:59]}  O-O {[%clk 0:02:56]} 6. Nbd2 {[%clk 0:03:00]}  c5 {[%clk 0:02:57]} 7. e4 {[%clk 0:03:00]}  Nc6 {[%clk 0:02:57]} 8. Qe2 {[%clk 0:02:59]}  b5 {[%clk 0:02:55]} 9. Re1 {[%clk 0:02:55]}  b4 {[%clk 0:02:52]} 10. Nf1 {[%clk 0:02:53]}  a5 {[%clk 0:02:52]} 11. h4 {[%clk 0:02:53]}  Ba6 {[%clk 0:02:52]} 12. e5 {[%clk 0:02:51]}  Ne8 {[%clk 0:02:43]} 13. N1h2 {[%clk 0:02:51]}  Nc7 {[%clk 0:02:43]} 14. Ng4 {[%clk 0:02:50]}  Nb5 {[%clk 0:02:35]} 15. Qd2 {[%clk 0:02:37]}  Nbd4 {[%clk 0:02:33]} 16. Ng5 {[%clk 0:02:27]}  Nf5 {[%clk 0:02:26]} 17. Bh3 {[%clk 0:02:13]}  Ncd4 {[%clk 0:02:13]} 18. c3 {[%clk 0:02:10]}  Bxg5 {[%clk 0:02:12]} 0-1


[Site "https://www.chess.com"]

[Event "Titled Tuesday Blitz November 15 Early 2022"]
[White "Ambartsumova, Karina"]
[Black "Boros, Denes"]
[WhiteFideId "4166299"]
[BlackFideId "722340"]
[WhiteElo "2319"]
[BlackElo "2464"]
[Result "1-0"]
[Round "02"]
[TimeControl "180+1"]
[Date "2022.11.16"]
[WhiteClock "0:00:36"]
[BlackClock "0:01:26"]

1. Nf3 {[%clk 0:03:00]}  g6 {[%clk 0:03:00]} 2. d4 {[%clk 0:03:00]}  Bg7 {[%clk 0:03:00]} 3. g3 {[%clk 0:03:00]}  b6 {[%clk 0:02:59]} 4. Bg2 {[%clk 0:03:01]}  Bb7 {[%clk 0:03:00]} 5. O-O {[%clk 0:03:01]}  Nf6 {[%clk 0:02:59]} 6. c4 {[%clk 0:03:01]}  O-O {[%clk 0:02:58]} 7. Nc3 {[%clk 0:03:01]}  d6 {[%clk 0:02:58]} 8. Qc2 {[%clk 0:02:55]}  Nc6 {[%clk 0:02:57]} 9. Rd1 {[%clk 0:02:47]}  Qc8 {[%clk 0:02:56]} 10. e4 {[%clk 0:02:37]}  Na5 {[%clk 0:02:45]} 11. b3 {[%clk 0:02:31]}  c5 {[%clk 0:02:45]} 12. d5 {[%clk 0:02:30]}  Nxe4 {[%clk 0:02:37]} 13. Qxe4 {[%clk 0:02:05]}  Bxc3 {[%clk 0:02:37]} 14. Rb1 {[%clk 0:01:58]}  Re8 {[%clk 0:02:18]} 15. Qh4 {[%clk 0:01:52]}  Bg7 {[%clk 0:02:06]} 16. Bh3 {[%clk 0:01:23]}  Qd8 {[%clk 0:01:57]} 17. Ng5 {[%clk 0:01:20]}  h5 {[%clk 0:01:46]} 18. Nxf7 {[%clk 0:01:14]}  Bf6 {[%clk 0:01:30]} 19. Nxd8 {[%clk 0:00:58]}  Bxh4 {[%clk 0:01:30]} 20. Nxb7 {[%clk 0:00:59]}  Bf6 {[%clk 0:01:29]} 21. Nxa5 {[%clk 0:00:57]}  bxa5 {[%clk 0:01:30]} 22. Be6+ {[%clk 0:00:56]}  Kg7 {[%clk 0:01:30]} 23. Bb2 {[%clk 0:00:56]}  Rab8 {[%clk 0:01:30]} 24. Bxf6+ {[%clk 0:00:55]}  exf6 {[%clk 0:01:31]} 25. Re1 {[%clk 0:00:54]}  a4 {[%clk 0:01:32]} 26. bxa4 {[%clk 0:00:53]}  Rb4 {[%clk 0:01:31]} 27. Rxb4 {[%clk 0:00:47]}  cxb4 {[%clk 0:01:32]} 28. Rb1 {[%clk 0:00:40]}  Rb8 {[%clk 0:01:31]} 29. Kf1 {[%clk 0:00:36]}  f5 {[%clk 0:01:32]} 30. Ke2 {[%clk 0:00:36]}  Kf6 {[%clk 0:01:32]} 31. Kd3 {[%clk 0:00:37]}  g5 {[%clk 0:01:30]} 32. Kd4 {[%clk 0:00:36]}  h4 {[%clk 0:01:29]} 33. c5 {[%clk 0:00:36]}  dxc5+ {[%clk 0:01:27]} 34. Kxc5 {[%clk 0:00:37]}  Ke5 {[%clk 0:01:26]} 35. Re1+ {[%clk 0:00:36]} 1-0


[Site "https://www.chess.com"]

[Event "Titled Tuesday Blitz November 15 Early 2022"]
[White "Atakhan, Abtin"]
[Black "Todorovic, Bojan"]
[WhiteFideId "22502203"]
[BlackFideId "917087"]
[WhiteElo "2298"]
[BlackElo "2266"]
[Result "0-1"]
[Round "02"]
[TimeControl "180+1"]
[Date "2022.11.16"]
[WhiteClock "0:00:07"]
[BlackClock "0:00:27"]

1. Nf3 {[%clk 0:03:00]}  Nf6 {[%clk 0:02:59]} 2. d4 {[%clk 0:03:01]}  g6 {[%clk 0:02:59]} 3. Bf4 {[%clk 0:03:02]}  Bg7 {[%clk 0:02:59]} 4. g3 {[%clk 0:03:01]}  O-O {[%clk 0:02:58]} 5. Bg2 {[%clk 0:03:02]}  c5 {[%clk 0:02:52]} 6. c3 {[%clk 0:03:01]}  Qb6 {[%clk 0:02:48]} 7. Qc1 {[%clk 0:03:00]}  cxd4 {[%clk 0:02:44]} 8. cxd4 {[%clk 0:03:00]}  Nc6 {[%clk 0:02:44]} 9. Nc3 {[%clk 0:02:37]}  Nxd4 {[%clk 0:02:36]} 10. Nxd4 {[%clk 0:02:37]}  Qxd4 {[%clk 0:02:36]} 11. O-O {[%clk 0:02:38]}  d6 {[%clk 0:02:35]} 12. Nb5 {[%clk 0:02:39]}  Qb6 {[%clk 0:02:33]} 13. Nc7 {[%clk 0:02:26]}  Rb8 {[%clk 0:02:31]} 14. Be3 {[%clk 0:02:26]}  Qa5 {[%clk 0:02:18]} 15. b4 {[%clk 0:02:26]}  Qa4 {[%clk 0:02:19]} 16. Qd1 {[%clk 0:01:46]}  Qxd1 {[%clk 0:02:05]} 17. Raxd1 {[%clk 0:01:46]}  b6 {[%clk 0:02:00]} 18. Bg5 {[%clk 0:01:42]}  Bb7 {[%clk 0:01:54]} 19. Bxf6 {[%clk 0:01:43]}  Bxf6 {[%clk 0:01:54]} 20. Nd5 {[%clk 0:01:33]}  Bxd5 {[%clk 0:01:51]} 21. Bxd5 {[%clk 0:01:34]}  e6 {[%clk 0:01:51]} 22. Bc4 {[%clk 0:01:33]}  d5 {[%clk 0:01:50]} 23. Ba6 {[%clk 0:01:34]}  Bc3 {[%clk 0:01:32]} 24. a3 {[%clk 0:01:25]}  d4 {[%clk 0:01:30]} 25. Bc4 {[%clk 0:01:20]}  Rbc8 {[%clk 0:01:29]} 26. Bb3 {[%clk 0:01:18]}  Rc7 {[%clk 0:01:29]} 27. Rd3 {[%clk 0:01:16]}  Kg7 {[%clk 0:01:22]} 28. e3 {[%clk 0:01:15]}  dxe3 {[%clk 0:01:19]} 29. Rxe3 {[%clk 0:01:13]}  Bd4 {[%clk 0:01:16]} 30. Rd3 {[%clk 0:01:12]}  e5 {[%clk 0:01:15]} 31. Kg2 {[%clk 0:01:12]}  Rfc8 {[%clk 0:01:13]} 32. g4 {[%clk 0:01:10]}  Rc3 {[%clk 0:01:12]} 33. Rfd1 {[%clk 0:01:10]}  Rxd3 {[%clk 0:01:11]} 34. Rxd3 {[%clk 0:01:10]}  Rc3 {[%clk 0:01:02]} 35. Rxc3 {[%clk 0:01:08]}  Bxc3 {[%clk 0:01:03]} 36. Kf3 {[%clk 0:01:08]}  Bb2 {[%clk 0:01:02]} 37. a4 {[%clk 0:01:08]}  a5 {[%clk 0:01:01]} 38. bxa5 {[%clk 0:01:08]}  bxa5 {[%clk 0:01:00]} 39. Ke4 {[%clk 0:01:09]}  f6 {[%clk 0:01:00]} 40. h4 {[%clk 0:01:02]}  h5 {[%clk 0:00:54]} 41. gxh5 {[%clk 0:01:02]}  gxh5 {[%clk 0:00:54]} 42. Kf5 {[%clk 0:01:02]}  Bd4 {[%clk 0:00:51]} 43. f4 {[%clk 0:00:56]}  exf4 {[%clk 0:00:48]} 44. Bd1 {[%clk 0:00:55]}  Kh6 {[%clk 0:00:45]} 45. Kxf4 {[%clk 0:00:54]}  Bf2 {[%clk 0:00:45]} 46. Kf5 {[%clk 0:00:46]}  Bxh4 {[%clk 0:00:45]} 47. Bf3 {[%clk 0:00:43]}  Bg5 {[%clk 0:00:42]} 48. Bc6 {[%clk 0:00:42]}  h4 {[%clk 0:00:37]} 49. Kg4 {[%clk 0:00:43]}  Kg6 {[%clk 0:00:37]} 50. Be8+ {[%clk 0:00:43]}  Kg7 {[%clk 0:00:37]} 51. Bc6 {[%clk 0:00:44]}  Kf8 {[%clk 0:00:37]} 52. Bd5 {[%clk 0:00:45]}  Ke7 {[%clk 0:00:38]} 53. Bc6 {[%clk 0:00:44]}  Kd6 {[%clk 0:00:38]} 54. Bg2 {[%clk 0:00:43]}  Ke5 {[%clk 0:00:38]} 55. Bc6 {[%clk 0:00:41]}  Kd4 {[%clk 0:00:38]} 56. Bd7 {[%clk 0:00:39]}  Ke3 {[%clk 0:00:38]} 57. Be6 {[%clk 0:00:26]}  Kf2 {[%clk 0:00:37]} 58. Kh3 {[%clk 0:00:26]}  Kf3 {[%clk 0:00:36]} 59. Bd5+ {[%clk 0:00:21]}  Kf4 {[%clk 0:00:36]} 60. Be6 {[%clk 0:00:21]}  f5 {[%clk 0:00:36]} 61. Bd7 {[%clk 0:00:21]}  Bf6 {[%clk 0:00:36]} 62. Bc8 {[%clk 0:00:20]}  Kg5 {[%clk 0:00:35]} 63. Bb7 {[%clk 0:00:20]}  Bd4 {[%clk 0:00:35]} 64. Bd5 {[%clk 0:00:19]}  Bf2 {[%clk 0:00:34]} 65. Kg2 {[%clk 0:00:18]}  Bg3 {[%clk 0:00:34]} 66. Kf3 {[%clk 0:00:18]}  Be5 {[%clk 0:00:32]} 67. Kg2 {[%clk 0:00:15]}  Kg4 {[%clk 0:00:32]} 68. Bf3+ {[%clk 0:00:15]}  Kf4 {[%clk 0:00:33]} 69. Bd5 {[%clk 0:00:16]}  Ke3 {[%clk 0:00:32]} 70. Kh3 {[%clk 0:00:16]}  Bf6 {[%clk 0:00:31]} 71. Kg2 {[%clk 0:00:12]}  f4 {[%clk 0:00:31]} 72. Bc6 {[%clk 0:00:11]}  f3+ {[%clk 0:00:30]} 73. Bxf3 {[%clk 0:00:10]}  h3+ {[%clk 0:00:30]} 74. Kg3 {[%clk 0:00:11]}  Be5+ {[%clk 0:00:31]} 75. Kg4 {[%clk 0:00:11]}  Kf2 {[%clk 0:00:27]} 76. Bc6 {[%clk 0:00:07]}  h2 {[%clk 0:00:27]} 77. Kf5 {[%clk 0:00:06]}  Bc3 {[%clk 0:00:27]} 78. Ke6 {[%clk 0:00:05]}  Bb4 {[%clk 0:00:26]} 79. Kd7 {[%clk 0:00:04]}  Kg1 {[%clk 0:00:26]} 80. Kc7 {[%clk 0:00:04]}  h1=Q {[%clk 0:00:26]} 81. Bxh1 {[%clk 0:00:04]}  Kxh1 {[%clk 0:00:27]} 82. Kc6 {[%clk 0:00:05]}  Kg2 {[%clk 0:00:27]} 83. Kb5 {[%clk 0:00:05]}  Kf2 {[%clk 0:00:27]} 84. Kc4 {[%clk 0:00:06]}  Ke2 {[%clk 0:00:28]} 85. Kb3 {[%clk 0:00:06]}  Kd3 {[%clk 0:00:28]} 86. Ka2 {[%clk 0:00:07]}  Kc4 {[%clk 0:00:28]} 87. Kb2 {[%clk 0:00:07]}  Bc5 {[%clk 0:00:27]} 0-1


[Site "https://www.chess.com"]

[Event "Titled Tuesday Blitz November 15 Early 2022"]
[White "Atakishiyev, Elmar"]
[Black "Sanal, Vahap"]
[WhiteFideId "13410547"]
[BlackFideId "6300545"]
[WhiteElo "2194"]
[BlackElo "2574"]
[Result "1-0"]
[Round "02"]
[TimeControl "180+1"]
[Date "2022.11.15"]
[WhiteClock "0:00:23"]
[BlackClock "0:00:05"]

1. d4 {[%clk 0:03:00]}  d6 {[%clk 0:02:59]} 2. c4 {[%clk 0:03:00]}  e5 {[%clk 0:02:59]} 3. Nf3 {[%clk 0:03:00]}  e4 {[%clk 0:03:00]} 4. Nfd2 {[%clk 0:03:00]}  f5 {[%clk 0:03:00]} 5. e3 {[%clk 0:03:00]}  Nf6 {[%clk 0:03:00]} 6. Nc3 {[%clk 0:03:01]}  c5 {[%clk 0:02:57]} 7. Nb3 {[%clk 0:02:55]}  b6 {[%clk 0:02:55]} 8. Be2 {[%clk 0:02:53]}  Nc6 {[%clk 0:02:51]} 9. O-O {[%clk 0:02:53]}  Be7 {[%clk 0:02:51]} 10. f3 {[%clk 0:02:53]}  O-O {[%clk 0:02:43]} 11. Nd5 {[%clk 0:02:42]}  Nxd5 {[%clk 0:02:31]} 12. cxd5 {[%clk 0:02:41]}  Nb4 {[%clk 0:02:32]} 13. fxe4 {[%clk 0:02:38]}  fxe4 {[%clk 0:02:32]} 14. dxc5 {[%clk 0:02:31]}  bxc5 {[%clk 0:02:28]} 15. a3 {[%clk 0:02:29]}  Nd3 {[%clk 0:02:17]} 16. Bxd3 {[%clk 0:02:23]}  exd3 {[%clk 0:02:17]} 17. Qxd3 {[%clk 0:02:24]}  Rxf1+ {[%clk 0:02:16]} 18. Qxf1 {[%clk 0:02:24]}  Bf6 {[%clk 0:02:14]} 19. Nd2 {[%clk 0:02:21]}  Rb8 {[%clk 0:02:11]} 20. Nf3 {[%clk 0:02:14]}  Qe7 {[%clk 0:02:00]} 21. Qd3 {[%clk 0:02:09]}  Bg4 {[%clk 0:01:49]} 22. Nd2 {[%clk 0:01:44]}  Bh5 {[%clk 0:01:43]} 23. Nc4 {[%clk 0:01:42]}  Bg6 {[%clk 0:01:44]} 24. Qe2 {[%clk 0:01:42]}  Be4 {[%clk 0:01:42]} 25. Bd2 {[%clk 0:01:40]}  Bxd5 {[%clk 0:01:40]} 26. Bc3 {[%clk 0:01:39]}  Bxc3 {[%clk 0:01:37]} 27. bxc3 {[%clk 0:01:40]}  Qe6 {[%clk 0:01:26]} 28. Nd2 {[%clk 0:01:40]}  Qe5 {[%clk 0:01:26]} 29. Rc1 {[%clk 0:01:32]}  Rb2 {[%clk 0:01:26]} 30. c4 {[%clk 0:01:21]}  Bc6 {[%clk 0:01:24]} 31. Qd3 {[%clk 0:01:19]}  Qg5 {[%clk 0:01:16]} 32. g3 {[%clk 0:01:19]}  Qe5 {[%clk 0:01:05]} 33. Rf1 {[%clk 0:01:12]}  h6 {[%clk 0:01:06]} 34. Rf2 {[%clk 0:01:09]}  Ra2 {[%clk 0:01:02]} 35. Qb3 {[%clk 0:01:06]}  Rb2 {[%clk 0:00:58]} 36. Qd3 {[%clk 0:01:06]}  a5 {[%clk 0:00:57]} 37. e4 {[%clk 0:00:57]}  Qd4 {[%clk 0:00:45]} 38. Qxd4 {[%clk 0:00:50]}  cxd4 {[%clk 0:00:45]} 39. Nf3 {[%clk 0:00:50]}  Rb1+ {[%clk 0:00:44]} 40. Rf1 {[%clk 0:00:48]}  Rxf1+ {[%clk 0:00:36]} 41. Kxf1 {[%clk 0:00:49]}  Bxe4 {[%clk 0:00:34]} 42. Nxd4 {[%clk 0:00:49]}  Bd3+ {[%clk 0:00:35]} 43. Kf2 {[%clk 0:00:42]}  Bxc4 {[%clk 0:00:36]} 44. Nf5 {[%clk 0:00:43]}  d5 {[%clk 0:00:34]} 45. Ke3 {[%clk 0:00:44]}  Kf7 {[%clk 0:00:34]} 46. Nd6+ {[%clk 0:00:43]}  Ke6 {[%clk 0:00:30]} 47. Nxc4 {[%clk 0:00:43]}  dxc4 {[%clk 0:00:31]} 48. Kd4 {[%clk 0:00:44]}  Kd6 {[%clk 0:00:21]} 49. Kxc4 {[%clk 0:00:44]}  Kc6 {[%clk 0:00:21]} 50. g4 {[%clk 0:00:41]}  Kb6 {[%clk 0:00:19]} 51. h4 {[%clk 0:00:35]}  Kc6 {[%clk 0:00:09]} 52. h5 {[%clk 0:00:33]}  Kb6 {[%clk 0:00:09]} 53. Kd5 {[%clk 0:00:31]}  Kb5 {[%clk 0:00:10]} 54. Ke6 {[%clk 0:00:32]}  Ka4 {[%clk 0:00:11]} 55. Kf7 {[%clk 0:00:31]}  Kxa3 {[%clk 0:00:11]} 56. Kxg7 {[%clk 0:00:31]}  a4 {[%clk 0:00:11]} 57. Kxh6 {[%clk 0:00:31]}  Kb4 {[%clk 0:00:09]} 58. g5 {[%clk 0:00:32]}  a3 {[%clk 0:00:10]} 59. g6 {[%clk 0:00:33]}  a2 {[%clk 0:00:11]} 60. g7 {[%clk 0:00:34]}  a1=Q {[%clk 0:00:11]} 61. g8=Q {[%clk 0:00:34]}  Qf6+ {[%clk 0:00:09]} 62. Qg6 {[%clk 0:00:34]}  Qf8+ {[%clk 0:00:09]} 63. Qg7 {[%clk 0:00:31]}  Qf4+ {[%clk 0:00:09]} 64. Kh7 {[%clk 0:00:31]}  Kb3 {[%clk 0:00:08]} 65. Qb7+ {[%clk 0:00:29]}  Ka2 {[%clk 0:00:07]} 66. Qa6+ {[%clk 0:00:26]}  Kb3 {[%clk 0:00:07]} 67. Qb6+ {[%clk 0:00:25]}  Ka2 {[%clk 0:00:06]} 68. Qe6+ {[%clk 0:00:24]}  Ka3 {[%clk 0:00:05]} 69. h6 {[%clk 0:00:24]}  Qc7+ {[%clk 0:00:06]} 70. Kg6 {[%clk 0:00:24]}  Qg3+ {[%clk 0:00:05]} 71. Kf7 {[%clk 0:00:24]}  Qf4+ {[%clk 0:00:05]} 72. Qf6 {[%clk 0:00:23]}  Qc7+ {[%clk 0:00:05]} 73. Qe7+ {[%clk 0:00:23]} 1-0


[Site "https://www.chess.com"]

[Event "Titled Tuesday Blitz November 15 Early 2022"]
[White "Avazkhonov, Alikhon"]
[Black "Aung Thant Zin"]
[WhiteFideId "14208504"]
[BlackFideId "13000063"]
[WhiteElo "1739"]
[BlackElo "2278"]
[Result "1-0"]
[Round "02"]
[TimeControl "180+1"]
[Date "2022.11.16"]
[WhiteClock "0:00:12"]
[BlackClock "0:01:04"]

1. d4 {[%clk 0:02:55]}  Nf6 {[%clk 0:02:59]} 2. c4 {[%clk 0:02:56]}  e6 {[%clk 0:02:59]} 3. Nc3 {[%clk 0:02:56]}  Bb4 {[%clk 0:02:58]} 4. e3 {[%clk 0:02:56]}  c5 {[%clk 0:02:58]} 5. Bd3 {[%clk 0:02:47]}  Nc6 {[%clk 0:02:57]} 6. Ne2 {[%clk 0:02:46]}  O-O {[%clk 0:02:56]} 7. O-O {[%clk 0:02:39]}  Bxc3 {[%clk 0:02:55]} 8. bxc3 {[%clk 0:02:39]}  d6 {[%clk 0:02:54]} 9. e4 {[%clk 0:02:37]}  h6 {[%clk 0:02:52]} 10. f4 {[%clk 0:02:37]}  b6 {[%clk 0:02:47]} 11. e5 {[%clk 0:01:19]}  Ne8 {[%clk 0:02:44]} 12. d5 {[%clk 0:00:57]}  Na5 {[%clk 0:02:37]} 13. Ng3 {[%clk 0:00:30]}  dxe5 {[%clk 0:02:19]} 14. fxe5 {[%clk 0:00:28]}  Ba6 {[%clk 0:01:48]} 15. dxe6 {[%clk 0:00:21]}  fxe6 {[%clk 0:01:45]} 16. Rxf8+ {[%clk 0:00:15]}  Kxf8 {[%clk 0:01:45]} 17. Qf3+ {[%clk 0:00:16]}  Kg8 {[%clk 0:01:45]} 18. Qe4 {[%clk 0:00:16]}  Bb7 {[%clk 0:01:27]} 19. Qh7+ {[%clk 0:00:15]}  Kf8 {[%clk 0:01:27]} 20. Bxh6 {[%clk 0:00:16]}  Ke7 {[%clk 0:01:24]} 21. Bg5+ {[%clk 0:00:14]}  Kd7 {[%clk 0:01:22]} 22. Bxd8 {[%clk 0:00:15]}  Rxd8 {[%clk 0:01:23]} 23. Ne4 {[%clk 0:00:14]}  Kc8 {[%clk 0:01:23]} 24. Ng5 {[%clk 0:00:12]}  Nc7 {[%clk 0:01:17]} 25. Nf7 {[%clk 0:00:11]}  Rf8 {[%clk 0:01:06]} 26. Qxg7 {[%clk 0:00:11]}  Kb8 {[%clk 0:01:07]} 27. Qxf8+ {[%clk 0:00:11]}  Bc8 {[%clk 0:01:06]} 28. Nd6 {[%clk 0:00:12]}  a6 {[%clk 0:01:04]} 29. Qxc8+ {[%clk 0:00:12]} 1-0


[Site "https://www.chess.com"]